bitfinex/quotes_SOLUSD_20240702
["timestamp","ask_amount","ask_price","bid_price","bid_amount"]
[1719964063513,0.17,154.18,154.14,13.21]
[1719964064033,13.38,154.18,154.09,16.1364]
[1719964064211,13.38,154.17,154.12,13.21]
[1719964064406,0.17,154.16,154.12,13.21]
[1719964064608,0.34,154.16,154.13,13.21]
[1719964064809,0.17,154.15,154.13,13.21]
[1719964066335,0.17,154.15,154.14,13.21]
[1719964067627,20.0,154.22,154.14,13.21]
[1719964067843,13.21,154.2,154.15,13.21]
[1719964068032,20.0,154.19,154.09,16.1364]
[1719964068219,13.21,154.18,154.13,13.21]
[1719964068835,0.17,154.17,154.09,16.1364]
[1719964069037,0.34,154.17,154.13,13.21]
[1719964070910,0.34,154.17,154.09,16.1364]
[1719964070911,0.34,154.17,154.14,13.21]
[1719964071116,33.21,154.19,154.15,13.21]
[1719964071117,0.34,154.18,154.15,13.21]
[1719964072126,0.34,154.18,154.14,13.21]
[1719964073148,0.34,154.18,154.15,13.21]
[1719964073644,0.34,154.18,154.17,13.21]
[1719964074423,0.34,154.18,154.16,13.21]
[1719964075245,0.34,154.18,154.11,6.4011]
[1719964075748,0.34,154.18,154.16,13.21]
[1719964077843,0.34,154.18,154.11,6.4011]
[1719964078037,0.34,154.18,154.15,13.21]
[1719964078224,0.17,154.17,154.09,16.1364]
[1719964078548,0.34,154.19,154.14,13.21]
[1719964078549,13.55,154.19,154.14,13.21]
[1719964078921,13.55,154.19,154.09,16.1364]
[1719964079118,13.55,154.19,154.14,13.21]
[1719964080123,0.34,154.19,154.14,13.21]
[1719964081640,0.34,154.19,154.09,16.1364]
[1719964081949,0.34,154.19,154.14,13.21]
[1719964082542,0.34,154.19,154.15,13.21]
[1719964082926,22.73470949,154.21,154.17,13.21]
[1719964082927,0.34,154.2,154.17,13.21]
[1719964084139,0.34,154.2,154.16,13.21]
[1719964086028,0.34,154.2,154.09,16.1364]
[1719964086029,13.21,154.17,154.11,13.21]
[1719964086343,15.53166823,154.19,154.11,13.21]
[1719964086344,13.55,154.16,154.11,13.21]
[1719964090548,13.55,154.16,154.05,15.6107]
[1719964090549,33.21,154.15,154.05,15.6107]
[1719964090756,6.8711,154.14,154.05,15.6107]
[1719964091054,6.8711,154.14,154.1,13.21]
[1719964091055,0.34,154.14,154.1,13.21]
[1719964091230,0.34,154.14,154.12,13.21]
[1719964091936,0.34,154.14,154.05,15.6107]
[1719964092143,0.34,154.14,154.11,13.21]
[1719964092449,13.21,154.16,154.11,13.21]
[1719964092450,0.17,154.13,154.11,13.21]
[1719964092638,0.34,154.15,154.11,13.21]
[1719964094350,20.34,154.15,154.03,6.9295342]
[1719964094556,13.21,154.13,154.08,13.21]
[1719964094770,0.34,154.12,154.08,13.21]
[1719964094951,0.34,154.12,154.03,0.8326342]
[1719964095156,0.34,154.12,154.08,13.21]
[1719964096248,0.34,154.12,154.03,0.8326342]
[1719964096452,0.34,154.12,154.07,13.21]
[1719964097550,0.34,154.12,154.03,0.8326342]
[1719964097551,13.21,154.08,154.03,0.8326342]
[1719964097752,0.17,154.07,154.03,13.0426342]
[1719964097952,20.34,154.07,154.03,13.0426342]
[1719964098258,33.55,154.07,154.02,13.21]
[1719964099168,15.0974,154.05,153.93,15.5063]
[1719964099353,0.34,154.04,154.02,13.21]
[1719964099553,21.3254,154.1,154.03,13.21]
[1719964099755,6.77791107,154.13,154.06,13.21]
[1719964100066,39.74466678,154.16,154.1,13.21]
[1719964100265,13.21,154.15,154.02,6.0853]
[1719964100453,13.21,154.14,154.09,13.21]
[1719964100659,28.10476385,154.16,154.09,13.21]
[1719964100881,13.21,154.15,154.1,13.21]
[1719964101064,41.31476385,154.16,154.1,13.21]
[1719964101266,13.21,154.15,154.1,13.21]
[1719964101671,28.10476385,154.16,154.1,13.21]
[1719964101874,28.10476385,154.16,154.04,26.53]
[1719964102288,20.0,154.15,154.04,26.53]
[1719964103095,0.34,154.14,154.04,26.53]
[1719964103398,0.34,154.14,154.02,6.0853]
[1719964105183,0.34,154.14,154.03,26.53]
[1719964109494,0.34,154.14,154.02,26.53]
[1719964113279,0.34,154.13,154.02,26.53]
[1719964113476,0.34,154.15,154.02,26.53]
[1719964113681,20.34,154.15,154.02,26.53]
[1719964114213,28.48677934,154.15,154.02,26.53]
[1719964114810,6.4272,154.13,154.02,26.53]
[1719964115002,0.34,154.12,153.99,15.5063]
[1719964115182,0.34,154.12,153.99,42.0363]
[1719964115502,0.34,154.12,154.0,1.29646704]
[1719964115797,0.34,154.12,154.02,26.53]
[1719964115986,0.34,154.12,154.02,27.82629868]
[1719964117003,0.34,154.12,154.02,26.53]
[1719964120695,6.4272,154.13,154.02,26.53]
[1719964122188,0.34,154.12,154.02,26.53]
[1719964123110,6.4272,154.13,154.02,46.04]
[1719964123482,6.4272,154.13,154.02,26.53]
[1719964123798,6.4272,154.13,154.09,13.27]
[1719964124514,0.34,154.12,154.09,13.27]
[1719964125105,0.34,154.12,154.08,13.27]
[1719964126206,0.34,154.12,154.0,72.59]
[1719964126403,19.6972,154.13,154.08,13.27]
[1719964127606,13.27,154.12,154.07,13.27]
[1719964127811,0.34,154.11,154.07,13.27]
[1719964128387,19.6972,154.13,154.07,13.27]
[1719964128388,0.17,154.1,154.07,13.27]
[1719964128587,0.34,154.12,154.0,53.08]
[1719964128801,0.34,154.12,154.07,13.27]
[1719964129208,13.61,154.12,154.07,13.27]
[1719964129397,0.34,154.12,154.07,13.27]
[1719964129596,13.61,154.12,154.07,13.27]
[1719964131203,13.61,154.12,154.0,53.08]
[1719964131399,13.27,154.11,154.05,13.27]
[1719964131602,13.61,154.1,154.05,13.27]
[1719964131901,0.34,154.09,154.05,13.27]
[1719964132311,15.8001,154.09,154.05,13.27]
[1719964133518,15.8001,154.09,154.04,13.27]
[1719964134209,6.4943,154.08,153.96,6.0093]
[1719964134509,6.4943,154.08,154.02,13.27]
[1719964134510,0.34,154.07,154.02,13.27]
[1719964135007,0.34,154.07,154.03,13.27]
[1719964135402,0.34,154.07,154.02,13.27]
[1719964136515,0.34,154.07,153.95,35.418]
[1719964136708,13.27,154.06,154.0,13.27]
[1719964136912,0.17,154.05,154.0,13.27]
[1719964137109,0.17,154.05,153.95,15.908]
[1719964137110,15.3914,154.04,153.95,15.908]
[1719964137300,0.34,154.03,154.0,13.27]
[1719964137608,0.34,154.03,153.95,15.908]
[1719964137609,0.34,154.03,153.99,13.27]
[1719964138216,0.34,154.03,153.95,15.908]
[1719964138424,0.34,154.03,153.99,13.27]
[1719964138790,13.27,154.01,153.92,53.08]
[1719964139113,15.3914,154.04,154.0,13.27]
[1719964139297,0.17,154.03,153.94,15.0514]
[1719964139499,0.17,154.03,154.0,13.27]
[1719964139710,15.3914,154.04,154.01,13.27]
[1719964141105,0.17,154.05,154.01,13.27]
[1719964141308,0.34,154.06,154.01,13.27]
[1719964141522,13.61,154.06,154.01,13.27]
[1719964141721,13.61,154.06,153.94,15.0514]
[1719964141903,13.61,154.06,154.0,13.27]
[1719964142214,6.1194,154.05,154.0,13.27]
[1719964142432,6.1194,154.05,154.01,13.27]
[1719964142433,0.17,154.04,154.01,13.27]
[1719964143311,0.17,154.04,153.94,15.0514]
[1719964143629,0.34,154.04,154.0,13.27]
[1719964147734,0.34,154.04,153.94,15.0514]
[1719964147943,0.34,154.04,154.0,13.27]
[1719964148221,0.34,154.04,153.94,13.27]
[1719964148222,13.27,154.01,153.94,13.27]
[1719964148529,13.27,154.01,153.89,16.17]
[1719964148530,0.17,154.0,153.96,13.27]
[1719964148709,0.34,154.0,153.89,16.17]
[1719964149025,13.61,154.0,153.95,13.27]
[1719964149327,13.61,154.0,153.96,13.27]
[1719964149328,0.17,153.99,153.96,13.27]
[1719964149527,0.17,154.0,153.96,13.27]
[1719964149728,25.65179576,154.03,153.92,32.78]
[1719964149929,25.65179576,154.03,153.99,13.27]
[1719964150522,25.65179576,154.03,154.0,13.27]
[1719964150911,25.65179576,154.03,153.98,13.27]
[1719964151105,38.92179576,154.03,153.98,13.27]
[1719964151311,0.17,154.02,153.98,13.27]
[1719964151920,0.34,154.02,153.98,13.27]
[1719964152526,13.61,154.02,153.97,13.27]
[1719964152910,13.61,154.02,153.92,53.08]
[1719964153111,13.27,154.01,153.96,13.27]
[1719964153435,0.34,154.0,153.96,13.27]
[1719964153726,0.17,154.0,153.98,13.27]
[1719964154022,0.17,154.01,153.98,13.27]
[1719964154226,0.17,154.01,153.92,53.08]
[1719964154418,0.34,154.01,153.98,13.27]
[1719964154810,0.34,154.01,153.92,53.08]
[1719964155126,0.34,154.01,153.97,13.27]
[1719964155824,0.34,154.01,153.92,53.08]
[1719964156021,0.34,154.01,153.96,13.27]
[1719964156221,22.43519576,154.02,153.97,13.27]
[1719964157917,13.27,154.01,153.96,13.27]
[1719964158319,0.34,154.0,153.92,53.08]
[1719964158529,0.34,154.0,153.89,35.68]
[1719964158712,13.61,154.0,153.95,13.27]
[1719964159116,13.61,154.0,153.89,16.17]
[1719964159430,13.27,153.99,153.94,13.27]
[1719964159627,0.34,153.98,153.94,13.27]
[1719964162529,0.34,153.98,153.89,16.17]
[1719964162712,0.34,153.98,153.94,13.27]
[1719964166334,6.78545403,153.99,153.89,35.68]
[1719964166635,13.27,154.01,153.96,13.27]
[1719964166827,0.34,154.0,153.96,13.27]
[1719964168733,0.34,154.0,153.95,13.27]
[1719964168915,13.27,154.0,153.95,13.27]
[1719964169117,0.34,153.99,153.95,13.27]
[1719964169711,0.34,153.99,153.89,16.17]
[1719964170139,0.34,153.99,153.95,13.27]
[1719964170633,0.34,153.99,153.89,16.17]
[1719964170831,0.34,153.99,153.95,13.27]
[1719964172636,0.34,153.99,153.89,16.17]
[1719964172837,0.34,153.99,153.95,13.27]
[1719964173015,0.34,153.99,153.89,16.17]
[1719964173214,0.34,153.99,153.95,13.27]
[1719964174138,0.34,153.99,153.96,13.27]
[1719964174339,0.34,154.0,153.96,13.27]
[1719964175815,0.34,154.0,153.89,16.17]
[1719964176020,13.61,154.0,153.95,13.27]
[1719964177052,20.39276852,154.0,153.95,13.27]
[1719964177415,7.12276852,154.0,153.96,13.27]
[1719964177636,6.78276852,154.0,153.96,13.27]
[1719964177842,0.34,154.01,153.97,13.27]
[1719964178044,0.34,154.01,153.96,13.27]
[1719964178345,13.61,154.01,153.96,13.27]
[1719964180019,13.61,154.01,153.92,53.08]
[1719964180222,13.61,154.01,153.96,13.27]
[1719964180624,13.61,154.01,153.92,53.08]
[1719964180832,13.27,154.0,153.95,13.27]
[1719964181150,0.34,153.99,153.95,13.27]
[1719964182040,0.34,153.99,153.89,35.68]
[1719964182752,0.34,153.99,153.95,13.27]
[1719964183422,22.58364021,154.01,153.95,13.27]
[1719964183743,9.31364021,154.01,153.97,13.27]
[1719964184243,22.58364021,154.01,153.89,35.68]
[1719964184436,9.31364021,154.01,153.96,13.27]
[1719964184644,22.58364021,154.01,153.96,13.27]
[1719964184947,0.34,154.0,153.96,13.27]
[1719964185548,13.61,154.0,153.89,35.68]
[1719964185727,22.92364021,154.0,153.94,13.27]
[1719964185925,19.1816,153.99,153.87,0.8326342]
[1719964186124,13.27,153.94,153.89,13.27]
[1719964186324,0.17,153.93,153.87,0.8326342]
[1719964186536,0.34,153.93,153.89,13.27]
[1719964187247,28.49524021,153.99,153.91,13.27]
[1719964187551,28.49524021,153.99,153.94,13.27]
[1719964187736,28.49524021,153.99,153.95,13.27]
[1719964188130,28.49524021,153.99,153.88,35.3855]
[1719964188131,13.27,154.02,153.96,13.27]
[1719964189245,13.27,154.02,153.97,13.27]
[1719964189456,22.43746243,154.02,153.97,13.27]
[1719964190350,9.16746243,154.02,153.97,13.27]
[1719964190551,22.43746243,154.02,153.97,13.27]
[1719964190853,0.34,154.01,153.97,13.27]
[1719964191430,0.34,154.01,153.92,53.08]
[1719964194061,0.34,154.01,153.88,35.3855]
[1719964194362,20.39237549,154.01,153.96,13.27]
[1719964195159,20.39237549,154.01,153.92,53.08]
[1719964195467,13.27,154.0,153.95,13.27]
[1719964195843,6.3283,153.98,153.94,13.27]
[1719964199364,6.78237549,154.01,153.97,13.27]
[1719964199663,6.3803,154.02,154.0,13.27]
[1719964199842,6.3803,154.02,153.99,13.27]
[1719964201137,12.98391343,154.06,154.01,13.27]
[1719964201354,12.98391343,154.06,154.02,13.27]
[1719964201560,26.25391343,154.06,154.01,13.27]
[1719964201933,26.25391343,154.06,154.02,0.97258042]
[1719964202442,26.25391343,154.06,154.01,13.27]
[1719964203557,12.98391343,154.06,154.01,13.27]
[1719964203779,0.34,154.05,154.01,13.27]
[1719964206163,0.34,154.05,153.94,16.5906]
[1719964206367,13.27,154.04,153.99,13.27]
[1719964206659,0.34,154.03,153.99,13.27]
[1719964206860,13.27,154.04,153.99,13.27]
[1719964207061,0.34,154.03,153.99,13.27]
[1719964208762,6.2041,154.06,153.99,13.27]
[1719964208962,6.2041,154.06,154.0,13.27]
[1719964209264,0.34,154.05,154.0,13.27]
[1719964209463,13.61,154.05,154.0,13.27]
[1719964210367,0.34,154.05,154.0,13.27]
[1719964210560,13.27,154.04,153.99,13.27]
[1719964210763,0.17,154.03,153.99,13.27]
[1719964211353,0.17,154.04,153.99,13.27]
[1719964211558,0.17,154.04,153.94,16.5906]
[1719964211767,0.17,154.04,153.99,13.27]
[1719964212449,13.61,154.05,154.0,13.27]
[1719964213159,0.34,154.05,154.0,13.27]
[1719964213460,13.61,154.05,154.0,13.27]
[1719964213664,13.61,154.05,153.94,16.5906]
[1719964214046,13.27,154.04,153.99,13.27]
[1719964214260,0.34,154.05,153.99,13.27]
[1719964214438,13.27,154.04,153.99,13.27]
[1719964214643,13.27,154.02,153.97,13.27]
[1719964215363,26.3341,154.01,153.91,15.7775]
[1719964215545,6.2435,154.0,153.91,15.7775]
[1719964215748,6.2435,154.0,153.96,13.27]
[1719964216649,6.2435,154.0,153.97,13.27]
[1719964216966,6.2435,154.0,153.96,13.27]
[1719964218361,6.2435,154.0,153.91,15.7775]
[1719964218564,6.2435,154.0,153.95,13.27]
[1719964218863,6.78239477,154.02,153.99,13.27]
[1719964219067,13.27,154.03,153.92,53.08]
[1719964219369,13.27,154.03,153.98,13.27]
[1719964219540,13.27,154.03,153.97,13.27]
[1719964219943,13.27,154.02,153.97,13.27]
[1719964221378,0.34,154.03,153.97,13.27]
[1719964221379,13.61,154.03,153.97,13.27]
[1719964223493,13.61,154.03,153.98,13.27]
[1719964224358,13.61,154.03,153.92,53.08]
[1719964224551,13.61,154.03,153.98,13.27]
[1719964225171,13.27,154.02,153.97,13.27]
[1719964225373,13.27,154.02,153.97,12.77]
[1719964227761,0.34,154.03,153.91,35.2875]
[1719964228071,26.42144882,154.05,153.97,13.27]
[1719964228072,13.27,154.02,153.97,13.27]
[1719964228669,0.34,154.04,153.97,13.27]
[1719964228847,13.27,154.02,153.97,13.27]
[1719964230565,13.27,154.01,153.91,15.7775]
[1719964230771,13.61,154.0,153.95,13.27]
[1719964231274,13.61,154.0,153.94,13.27]
[1719964231275,13.27,153.99,153.94,13.27]
[1719964232158,13.27,153.99,153.91,15.7775]
[1719964232359,0.34,153.98,153.91,15.7775]
[1719964232564,0.34,153.98,153.94,13.27]
[1719964233459,0.34,153.98,153.91,15.7775]
[1719964233665,0.34,153.98,153.94,13.27]
[1719964234166,0.34,153.98,153.91,15.7775]
[1719964234367,13.61,153.98,153.93,13.27]
[1719964235874,13.61,153.98,153.92,13.27]
[1719964236087,13.61,153.98,153.87,22.7324342]
[1719964236684,13.27,153.97,153.92,13.27]
[1719964236898,0.34,153.96,153.92,13.27]
[1719964237686,13.61,153.96,153.87,16.6023342]
[1719964238075,13.61,153.96,153.91,13.27]
[1719964238265,0.17,153.96,153.87,16.6023342]
[1719964238586,0.34,153.96,153.92,13.27]
[1719964239798,0.34,153.96,153.93,13.27]
[1719964239970,0.34,153.97,153.93,13.27]
[1719964240577,13.11067629,153.99,153.94,13.27]
[1719964240764,19.5963,153.99,153.94,13.27]
[1719964241160,19.5963,153.99,153.87,36.1423342]
[1719964241473,13.27,153.97,153.87,16.6023342]
[1719964241667,13.27,153.97,153.92,13.27]
[1719964243798,0.17,153.96,153.87,16.6023342]
[1719964243981,13.61,153.96,153.91,13.27]
[1719964244289,13.44,153.96,153.91,13.27]
[1719964245204,13.44,153.95,153.87,0.8326342]
[1719964245682,13.44,153.95,153.9,13.27]
[1719964247185,13.0641,153.94,153.87,0.8326342]
[1719964247366,0.34,153.93,153.89,13.27]
[1719964248870,0.34,153.93,153.87,0.8326342]
[1719964249193,0.34,153.93,153.91,13.27]
[1719964250190,0.17,153.93,153.91,13.27]
[1719964250396,13.0641,153.94,153.91,13.27]
[1719964251190,13.0641,153.97,153.93,13.27]
[1719964251368,19.84775661,153.97,153.93,13.27]
[1719964251571,13.0641,153.97,153.87,0.8326342]
[1719964251788,13.0641,153.97,153.93,13.27]
[1719964252396,0.17,153.96,153.93,13.27]
[1719964252679,0.34,153.96,153.93,13.27]
[1719964252877,0.34,153.96,153.92,13.27]
[1719964254501,0.34,153.96,153.87,0.8326342]
[1719964254685,0.34,153.96,153.91,13.27]
[1719964256300,0.34,153.96,153.87,0.8326342]
[1719964256597,0.34,153.96,153.92,13.27]
[1719964264201,0.34,153.96,153.92,13.27]
[1719964264390,0.34,153.96,153.87,0.8326342]
[1719964264590,13.61,153.96,153.91,13.27]
[1719964265399,0.34,153.96,153.9,13.27]
[1719964265783,13.61,153.96,153.9,13.27]
[1719964265983,13.61,153.96,153.91,13.27]
[1719964267105,0.34,153.96,153.91,13.27]
[1719964268001,0.34,153.96,153.87,0.8326342]
[1719964268203,0.34,153.96,153.91,13.27]
[1719964268406,0.34,153.96,153.87,0.8326342]
[1719964268613,0.34,153.96,153.91,13.27]
[1719964269112,0.34,153.96,153.87,0.8326342]
[1719964269600,13.27,153.94,153.87,0.8326342]
[1719964269786,0.34,153.93,153.87,0.8326342]
[1719964269982,0.34,153.93,153.88,13.27]
[1719964270898,6.0843,153.92,153.89,13.27]
[1719964271104,6.0843,153.92,153.87,0.8326342]
[1719964271304,6.0843,153.92,153.88,13.27]
[1719964272205,6.0843,153.92,153.89,13.27]
[1719964275211,0.17,153.91,153.87,0.8326342]
[1719964275383,0.34,153.91,153.87,0.8326342]
[1719964275583,0.34,153.91,153.88,13.27]
[1719964276610,0.34,153.91,153.89,13.27]
[1719964277311,0.34,153.91,153.87,0.8326342]
[1719964277604,6.0843,153.92,153.89,13.27]
[1719964277998,6.0843,153.92,153.87,0.8326342]
[1719964278209,6.0843,153.92,153.89,13.27]
[1719964278592,0.34,153.91,153.89,13.27]
[1719964279093,0.34,153.91,153.88,13.27]
[1719964285206,0.34,153.91,153.87,0.8326342]
[1719964285715,0.34,153.91,153.87,14.1026342]
[1719964286120,0.34,153.91,153.88,13.27]
[1719964286617,0.34,153.91,153.87,0.8326342]
[1719964286808,0.34,153.91,153.88,13.27]
[1719964287128,0.34,153.91,153.87,0.8326342]
[1719964287336,6.0843,153.92,153.88,13.27]
[1719964287698,0.17,153.91,153.88,13.27]
[1719964287994,6.0843,153.92,153.88,13.27]
[1719964290317,0.34,153.93,153.87,0.8326342]
[1719964290613,13.0641,153.97,153.92,13.27]
[1719964290798,13.0641,153.97,153.93,13.27]
[1719964291194,13.0641,153.97,153.88,16.2136]
[1719964291195,13.0641,153.97,153.94,13.27]
[1719964292413,13.27,153.99,153.94,13.27]
[1719964292623,43.33642281,154.0,153.95,13.27]
[1719964292801,30.06642281,154.0,153.95,13.27]
[1719964293000,36.55339032,154.0,153.95,13.27]
[1719964293408,29.96049032,154.0,153.95,13.27]
[1719964293613,8.23435132,154.0,153.96,13.27]
[1719964294200,8.23435132,154.0,153.97,13.27]
[1719964294621,8.23435132,154.0,153.98,13.27]
[1719964295131,13.27,154.03,153.98,13.27]
[1719964296415,13.27,154.03,153.9,21.6776]
[1719964296416,8.23435132,154.03,153.9,21.6776]
[1719964296612,13.27,153.99,153.94,13.27]
[1719964297002,0.17,153.98,153.94,13.27]
[1719964297422,0.34,153.98,153.94,13.27]
[1719964300128,0.34,153.98,153.9,15.5716]
[1719964300721,13.61,153.98,153.93,13.27]
[1719964300921,0.34,153.98,153.93,13.27]
[1719964301321,13.61,153.98,153.93,13.27]
[1719964301703,0.34,153.98,153.93,13.27]
[1719964301927,0.17,153.97,153.93,13.27]
[1719964302228,13.61,153.99,153.94,13.27]
[1719964302729,0.34,153.99,153.95,13.27]
[1719964303243,0.17,153.99,153.92,53.08]
[1719964303419,0.17,153.99,153.96,13.27]
[1719964304907,0.34,154.0,153.96,13.27]
[1719964305725,13.61,154.0,153.95,13.27]
[1719964309617,13.61,154.0,153.9,15.5716]
[1719964309826,0.34,154.0,153.95,13.27]
[1719964311634,0.34,154.0,153.96,13.27]
[1719964313946,16.69049032,154.02,153.98,13.27]
[1719964313947,8.23435132,154.02,153.98,13.27]
[1719964314241,8.23435132,154.02,153.99,13.27]
[1719964315233,0.17,154.01,153.99,13.27]
[1719964315442,0.34,154.01,153.99,13.27]
[1719964316839,8.23435132,154.02,153.99,13.27]
[1719964318743,8.456139,154.06,153.96,16.326]
[1719964318924,21.726139,154.06,154.01,13.27]
[1719964319122,21.726139,154.06,154.02,13.27]
[1719964319123,8.456139,154.06,154.02,13.27]
[1719964320548,8.456139,154.06,153.96,16.326]
[1719964320549,13.27,154.04,153.96,16.326]
[1719964320750,0.17,154.03,153.99,13.27]
[1719964321535,21.50435132,154.04,153.99,13.27]
[1719964321735,0.17,154.03,154.0,13.27]
[1719964322057,0.34,154.03,153.99,13.27]
[1719964322740,0.34,154.03,154.0,13.27]
[1719964326350,8.23435132,154.04,154.01,13.27]
[1719964326553,8.456139,154.06,154.01,13.27]
[1719964326742,0.34,154.05,154.01,13.27]
[1719964330134,13.61,154.05,154.0,13.27]
[1719964330340,21.84435132,154.05,153.96,16.326]
[1719964330658,21.84435132,154.05,154.0,13.27]
[1719964331954,21.84435132,154.05,153.96,16.326]
[1719964332162,21.50435132,154.04,153.98,13.27]
[1719964332336,13.61,154.03,153.98,13.27]
[1719964334665,13.61,154.03,153.99,13.27]
[1719964334666,0.34,154.03,153.99,13.27]
[1719964334832,0.34,154.03,154.0,13.27]
[1719964336463,8.23435132,154.04,154.0,13.27]
[1719964336771,8.23435132,154.04,154.01,13.27]
[1719964341532,8.23435132,154.04,153.92,87.7996]
[1719964341533,21.50435132,154.04,153.92,68.2596]
[1719964341735,21.50435132,154.04,153.98,13.27]
[1719964341736,13.61,154.03,153.98,13.27]
[1719964342157,0.34,154.03,153.99,13.27]
[1719964343247,0.34,154.03,154.0,13.27]
[1719964343752,0.34,154.03,153.99,13.27]
[1719964346052,13.27,154.01,153.96,13.27]
[1719964346246,0.34,154.0,153.92,15.1796]
[1719964346448,0.34,154.0,153.96,13.27]
[1719964346654,0.34,154.0,153.97,13.27]
[1719964346963,0.34,154.01,153.97,13.27]
[1719964347367,0.34,154.01,153.98,13.27]
[1719964349668,15.01534595,154.03,153.98,13.27]
[1719964349868,8.23435132,154.03,154.01,13.27]
[1719964350969,8.23435132,154.03,153.92,87.7996]
[1719964350970,8.23435132,154.03,154.0,13.27]
[1719964354158,0.34,154.02,153.92,68.2596]
[1719964354354,0.34,154.02,153.98,13.27]
[1719964354771,0.34,154.02,153.97,13.27]
[1719964356454,13.61,154.02,153.92,68.2596]
[1719964356659,13.61,154.02,153.97,13.27]
[1719964359078,0.34,154.02,153.98,13.27]
[1719964360576,0.34,154.02,153.99,13.27]
[1719964364289,0.34,154.02,153.98,13.27]
[1719964364792,0.34,154.02,153.97,13.27]
[1719964365301,13.61,154.02,153.97,13.27]
[1719964365674,0.34,154.02,153.97,13.27]
[1719964369503,13.27,154.0,153.94,13.27]
[1719964369680,13.61,153.99,153.94,13.27]
[1719964370901,20.38591168,153.99,153.94,13.27]
[1719964371098,7.11591168,153.99,153.94,13.27]
[1719964371268,0.34,153.99,153.94,13.27]
[1719964372582,0.34,153.99,153.95,13.27]
[1719964377708,0.34,153.99,153.96,13.27]
[1719964377881,0.34,154.0,153.96,13.27]
[1719964378993,0.34,154.0,153.95,13.27]
[1719964380690,0.34,154.0,153.96,13.27]
[1719964383308,0.34,154.0,153.95,13.27]
[1719964383509,13.61,154.0,153.95,13.27]
[1719964385008,0.34,154.0,153.97,13.27]
[1719964385214,21.29845132,154.02,153.98,13.27]
[1719964385396,0.34,154.01,153.98,13.27]
[1719964386084,13.61,154.01,153.92,28.4496]
[1719964386289,13.61,154.01,153.96,13.27]
[1719964389512,0.34,154.01,153.97,13.27]